bitfinex/quotes_BTCUSD_20240101
["timestamp","ask_amount","ask_price","bid_price","bid_amount"]
[1704151469979,0.372705,43871.0,43864.0,0.2401]
[1704151470616,0.372705,43871.0,43864.0,0.2411]
[1704151471077,0.364705,43871.0,43865.0,0.00617574]
[1704151472305,0.372705,43871.0,43865.0,0.00717574]
[1704151472719,0.364705,43871.0,43865.0,0.00617574]
[1704151472917,0.368705,43871.0,43865.0,0.00617574]
[1704151473158,0.328705,43871.0,43865.0,0.00617574]
[1704151473365,0.328705,43871.0,43865.0,0.00717574]
[1704151474207,0.324705,43871.0,43865.0,0.00617574]
[1704151474421,0.331705,43871.0,43865.0,0.00617574]
[1704151474836,0.324705,43871.0,43865.0,0.00617574]
[1704151475493,0.364705,43871.0,43865.0,0.00617574]
[1704151475734,0.368705,43871.0,43865.0,0.00617574]
[1704151475923,0.23321711,43870.0,43865.0,0.00617574]
[1704151476051,0.364728,43869.0,43865.0,0.00617574]
[1704151476259,0.364728,43869.0,43864.0,0.2401]
[1704151476741,0.364736,43868.0,43864.0,0.2401]
[1704151476974,0.364736,43868.0,43860.0,0.005]
[1704151477206,0.364736,43868.0,43858.0,0.2544]
[1704151477207,0.23321711,43867.0,43858.0,0.2544]
[1704151477422,0.364752,43866.0,43861.0,0.00618845]
[1704151477629,0.364752,43866.0,43858.0,0.2494]
[1704151477838,0.364752,43866.0,43858.0,0.2544]
[1704151478051,0.364752,43866.0,43860.0,0.005]
[1704151478475,0.364752,43866.0,43861.0,0.00618845]
[1704151479114,0.364752,43866.0,43858.0,0.2494]
[1704151479306,0.69796911,43866.0,43858.0,0.2494]
[1704151479529,0.295,43863.0,43862.0,0.00618179]
[1704151479737,0.295,43863.0,43858.0,0.005]
[1704151479738,0.295,43861.0,43858.0,0.005]
[1704151479962,0.69801511,43860.0,43858.0,0.005]
[1704151480166,0.69801511,43860.0,43858.0,0.003]
[1704151480617,0.33321711,43860.0,43852.0,0.2552]
[1704151480839,0.69801511,43860.0,43852.0,0.2552]
[1704151481056,0.59801511,43860.0,43858.0,0.002]
[1704151481256,0.59801511,43860.0,43858.0,0.001]
[1704151481682,0.364805,43859.0,43858.0,0.001]
[1704151481891,0.59802211,43859.0,43858.0,0.001]
[1704151482522,0.59802211,43859.0,43858.0,0.002]
[1704151482762,0.97469355,43859.0,43858.0,0.001]
[1704151483028,1.09237055,43859.0,43858.0,0.001]
[1704151483240,0.295,43853.0,43852.0,0.001]
[1704151483471,0.295,43853.0,43845.0,0.005]
[1704151483472,0.36486,43853.0,43845.0,0.005]
[1704151483692,0.05433504,43856.0,43848.0,0.005]
[1704151483693,0.364834,43856.0,43848.0,0.005]
[1704151483907,0.59805111,43856.0,43848.0,0.005]
[1704151484105,0.59805111,43856.0,43849.0,0.2592]
[1704151484106,0.364834,43856.0,43849.0,0.2592]
[1704151484723,0.371834,43856.0,43849.0,0.2592]
[1704151485141,0.371834,43856.0,43849.0,0.2642]
[1704151485340,0.364834,43856.0,43849.0,0.2642]
[1704151485586,0.371834,43856.0,43849.0,0.2642]
[1704151486816,0.364834,43856.0,43849.0,0.2642]
[1704151487022,0.371834,43856.0,43849.0,0.2642]
[1704151488482,0.364834,43856.0,43850.0,0.00630201]
[1704151488687,0.368834,43856.0,43850.0,0.00630201]
[1704151489157,0.368834,43856.0,43855.0,0.005]
[1704151489158,0.004,43856.0,43855.0,0.005]
[1704151489389,0.004,43856.0,43855.0,0.01127644]
[1704151489611,0.004,43856.0,43855.0,0.005]
[1704151489829,0.41907704,43867.0,43858.0,0.005]
[1704151490019,0.08150257,43868.0,43863.0,0.005]
[1704151490020,0.05433504,43868.0,43863.0,0.005]
[1704151490456,0.59796111,43867.0,43864.0,0.00620787]
[1704151490645,0.65229615,43867.0,43864.0,0.00620787]
[1704151490843,0.65229615,43867.0,43859.0,0.2608]
[1704151491059,0.66529615,43867.0,43859.0,0.2608]
[1704151491277,0.66529615,43867.0,43860.0,0.0062345]
[1704151491488,0.65229615,43867.0,43864.0,0.001]
[1704151491688,0.65229615,43867.0,43864.0,0.002]
[1704151491689,0.66529615,43867.0,43864.0,0.002]
[1704151491931,0.06733504,43867.0,43864.0,0.002]
[1704151492337,0.06733504,43867.0,43865.0,0.00620121]
[1704151492543,0.05433504,43866.0,43865.0,0.00620121]
[1704151492987,0.05433504,43866.0,43864.0,0.001]
[1704151493235,0.05433504,43866.0,43862.0,0.005]
[1704151493457,0.13583761,43866.0,43862.0,0.005]
[1704151493680,0.05433504,43865.0,43863.0,0.00559307]
[1704151494383,0.05433504,43865.0,43864.0,0.005]
[1704151494810,0.05433504,43865.0,43864.0,0.01120006]
[1704151495229,0.007,43866.0,43865.0,0.005]
[1704151495700,0.007,43866.0,43865.0,0.24438929]
[1704151495924,0.05433504,43876.0,43872.0,0.005]
[1704151496148,0.10873009,43880.0,43872.0,0.005]
[1704151496374,0.37812781,43880.0,43873.0,0.005]
[1704151496612,0.10873009,43880.0,43873.0,0.01111452]
[1704151496837,0.37812931,43880.0,43876.0,0.005]
[1704151497063,0.37812931,43880.0,43871.0,0.2389]
[1704151497064,0.10867009,43878.0,43874.0,0.00610786]
[1704151497297,0.3780765,43878.0,43873.0,0.005]
[1704151497508,0.10867009,43878.0,43873.0,0.005]
[1704151497633,0.10867009,43878.0,43874.0,0.00610786]
[1704151498033,0.37808587,43879.0,43874.0,0.005]
[1704151498488,0.37808587,43879.0,43875.0,0.00610121]
[1704151498704,0.37808587,43879.0,43874.0,0.005]
[1704151498915,0.37808587,43879.0,43875.0,0.00610121]
[1704151499228,0.005,43878.0,43874.0,0.005]
[1704151499443,0.37808587,43879.0,43871.0,0.2389]
[1704151499444,0.10867009,43879.0,43871.0,0.2389]
[1704151499615,0.36466,43877.0,43875.0,0.00610121]
[1704151499822,0.36466,43877.0,43871.0,0.2389]
[1704151500248,0.47333009,43877.0,43872.0,0.00612117]
[1704151500453,0.61132071,43876.0,43872.0,0.00612117]
[1704151500662,0.364688,43873.0,43872.0,0.00612117]
[1704151500872,1.16235994,43873.0,43864.0,0.005]
[1704151501081,0.4737008,43871.0,43865.0,0.2423]
[1704151501285,0.4737008,43871.0,43865.0,0.24811867]
[1704151501488,0.1089878,43871.0,43865.0,0.2423]
[1704151501718,0.34220491,43871.0,43866.0,0.00581201]
[1704151501921,0.1089878,43869.0,43866.0,0.00581201]
[1704151502152,0.364738,43867.0,43865.0,0.2423]
[1704151502908,0.364738,43867.0,43866.0,0.001]
[1704151503315,0.364738,43867.0,43865.0,0.2423]
[1704151503538,0.364738,43867.0,43865.0,0.2433]
[1704151503741,0.368738,43867.0,43865.0,0.2433]
[1704151504072,0.368738,43867.0,43865.0,0.2423]
[1704151504311,0.372738,43867.0,43865.0,0.2423]
[1704151504526,0.368738,43867.0,43866.0,0.00581201]
[1704151504743,0.368738,43867.0,43865.0,0.2423]
[1704151504744,0.008,43867.0,43865.0,0.2423]
[1704151504965,0.008,43867.0,43865.0,0.2473]
[1704151505177,0.008,43867.0,43866.0,0.05984325]
[1704151505618,0.004,43867.0,43866.0,0.05984325]
[1704151506493,0.302672,43875.0,43870.0,0.005]
[1704151506714,0.41912932,43878.0,43870.0,0.005]
[1704151506923,0.41912932,43878.0,43871.0,0.00577004]
[1704151506924,0.65234643,43878.0,43871.0,0.00577004]
[1704151507187,0.59786611,43878.0,43871.0,0.26247004]
[1704151507414,0.59786611,43878.0,43872.0,0.005]
[1704151507415,0.364649,43878.0,43872.0,0.005]
[1704151508091,0.364649,43878.0,43872.0,0.01076338]
[1704151508753,0.364649,43878.0,43872.0,0.00576338]
[1704151508930,0.369649,43878.0,43872.0,0.00576338]
[1704151509104,0.364661,43877.0,43872.0,0.00576338]
[1704151509333,0.364661,43877.0,43871.0,0.2567]
[1704151510870,0.367661,43877.0,43871.0,0.2567]
[1704151511077,0.364661,43877.0,43871.0,0.2567]
[1704151511296,0.42214132,43877.0,43871.0,0.2567]
[1704151511506,0.05448032,43876.0,43871.0,0.2567]
[1704151511729,0.23321711,43875.0,43871.0,0.2567]
[1704151511948,0.23321711,43875.0,43865.0,0.005]
[1704151511949,0.295,43871.0,43865.0,0.2508]
[1704151512189,0.295,43871.0,43858.0,0.364809]
[1704151512190,0.364725,43869.0,43858.0,0.364809]
[1704151512413,0.364725,43869.0,43866.0,0.00579636]
[1704151512598,0.364725,43869.0,43862.0,0.005]
[1704151513047,0.364698,43872.0,43864.0,0.005]
[1704151513256,0.10768193,43875.0,43865.0,0.005]
[1704151513257,0.364673,43875.0,43865.0,0.005]
[1704151513474,0.364673,43875.0,43867.0,0.005]
[1704151513475,0.005,43869.0,43867.0,0.005]
[1704151513678,0.01,43869.0,43867.0,0.005]
[1704151513887,0.005,43869.0,43868.0,0.00578391]
[1704151514102,0.005,43869.0,43867.0,0.005]
[1704151514521,0.005,43869.0,43868.0,0.01078391]
[1704151514779,0.005,43869.0,43868.0,0.05860391]
[1704151514985,0.05454032,43880.0,43873.0,0.005]
[1704151515212,6e-05,43880.0,43876.0,0.005]
[1704151515439,6e-05,43880.0,43877.0,0.2383]
[1704151515857,6e-05,43880.0,43878.0,0.005718]
[1704151516505,0.370692,43880.0,43878.0,0.005718]
[1704151516706,0.59790911,43880.0,43878.0,0.005718]
[1704151516940,0.364639,43879.0,43872.0,0.005]
[1704151517147,0.364647,43878.0,43872.0,0.005]
[1704151517400,0.23627711,43880.0,43873.0,0.00575128]
[1704151517618,0.364647,43878.0,43873.0,0.00575128]
[1704151518037,0.05448032,43879.0,43869.0,0.2569]
[1704151518241,0.364657,43877.0,43869.0,0.2519]
[1704151518658,0.364657,43877.0,43870.0,0.00577124]
[1704151519065,0.364657,43877.0,43870.0,0.01077124]
[1704151519689,0.364657,43877.0,43870.0,0.00577124]
[1704151519690,0.364666,43876.0,43870.0,0.00577124]
[1704151519894,0.364673,43875.0,43870.0,0.01077124]
[1704151520106,0.006,43877.0,43871.0,0.005]
[1704151520314,0.006,43877.0,43871.0,0.01075861]
[1704151520521,0.006,43877.0,43874.0,0.005]
[1704151520726,0.012,43877.0,43874.0,0.005]
[1704151521142,0.006,43877.0,43875.0,0.00573199]
[1704151521350,0.012,43877.0,43875.0,0.00573199]
[1704151521773,0.006,43877.0,43875.0,0.00573199]
[1704151521975,0.364691,43880.0,43875.0,0.00573199]
[1704151522181,0.008,43877.0,43875.0,0.00573199]
[1704151522429,0.002,43877.0,43875.0,0.00573199]
[1704151522652,0.364691,43880.0,43875.0,0.00573199]
[1704151522879,0.006,43877.0,43875.0,0.24673199]
[1704151523560,0.003,43877.0,43875.0,0.24673199]
[1704151523792,0.367656,43877.0,43875.0,0.24673199]
[1704151524017,0.366656,43877.0,43875.0,0.241]
[1704151524184,0.366656,43877.0,43876.0,0.00572533]
[1704151524412,0.368656,43877.0,43876.0,0.00572533]
[1704151524652,0.368656,43877.0,43875.0,0.241]
[1704151524854,0.366656,43877.0,43875.0,0.241]
[1704151525032,0.367656,43877.0,43876.0,0.00572533]
[1704151525249,0.367656,43877.0,43875.0,0.241]
[1704151525423,0.370656,43877.0,43875.0,0.241]
[1704151525618,0.367656,43877.0,43876.0,0.00572533]
[1704151525849,0.003,43877.0,43875.0,0.241]
[1704151526086,0.006,43877.0,43876.0,0.005]
[1704151526379,6e-05,43880.0,43876.0,0.01072533]
[1704151526551,0.005,43877.0,43876.0,0.01072533]
[1704151526759,6e-05,43880.0,43876.0,0.01072533]
[1704151527288,0.006,43877.0,43876.0,0.01072533]
[1704151527708,6e-05,43880.0,43876.0,0.01072533]
[1704151528050,0.00506,43880.0,43876.0,0.01072533]
[1704151528491,0.003,43877.0,43876.0,0.01072533]
[1704151528718,0.001,43877.0,43876.0,0.01072533]
[1704151529724,0.002,43877.0,43876.0,0.01072533]
[1704151529961,0.002,43877.0,43876.0,0.37538933]
[1704151530329,0.001,43877.0,43876.0,0.42966933]
[1704151530542,6e-05,43880.0,43879.0,0.369639]
[1704151530957,0.00506,43880.0,43879.0,0.3751889]
[1704151531169,0.00506,43880.0,43879.0,1.03182634]
[1704151531375,6e-05,43880.0,43879.0,0.4266689]
[1704151531755,6e-05,43880.0,43879.0,0.4316689]
[1704151532150,6e-05,43880.0,43879.0,0.3801889]
[1704151532358,0.00106,43880.0,43879.0,0.3911889]
[1704151532588,6e-05,43880.0,43879.0,0.3751889]
[1704151532789,6e-05,43880.0,43879.0,0.0205499]
[1704151532790,0.00106,43880.0,43879.0,0.0205499]
[1704151533017,0.00106,43880.0,43879.0,0.0155499]
[1704151533224,0.00106,43880.0,43879.0,0.0055499]
[1704151533225,6e-05,43880.0,43879.0,0.0055499]
[1704151533380,0.00206,43880.0,43879.0,0.0255499]
[1704151533576,0.00206,43880.0,43879.0,0.02]
[1704151533781,0.00206,43880.0,43879.0,0.02525378]
[1704151534235,0.00106,43880.0,43879.0,0.01625378]
[1704151534645,0.00106,43880.0,43879.0,0.01325378]
[1704151535094,0.00206,43880.0,43879.0,0.02325378]
[1704151535802,0.00106,43880.0,43879.0,0.01325378]
[1704151536052,0.295,43886.0,43879.0,0.01325378]
[1704151536053,0.0201339,43889.0,43887.0,0.305]
[1704151536286,0.0201339,43889.0,43887.0,0.90278911]
[1704151536287,35.75822981,43888.0,43887.0,0.90278911]
[1704151536492,35.75822981,43888.0,43887.0,10.82570777]
[1704151536493,25.36545869,43888.0,43887.0,10.82570777]
[1704151536711,23.98665249,43888.0,43887.0,12.72471136]
[1704151536930,23.91948468,43888.0,43887.0,3.20182056]
[1704151537149,23.69162158,43888.0,43887.0,1.53265778]
[1704151537367,23.69162158,43888.0,43887.0,2.16949073]
[1704151537636,23.69162158,43888.0,43887.0,2.6661311]
[1704151537850,23.69162158,43888.0,43887.0,2.59134989]
[1704151538057,23.69162158,43888.0,43887.0,2.59655357]
[1704151538058,23.46376886,43888.0,43887.0,2.59655357]
[1704151538281,23.46376886,43888.0,43887.0,1.89671357]
[1704151538501,22.6140055,43888.0,43887.0,2.90834097]
[1704151538712,22.55336434,43888.0,43887.0,2.87888201]
[1704151538928,22.29979564,43888.0,43887.0,3.88131767]
[1704151539135,22.15267909,43888.0,43887.0,3.64392157]
[1704151539344,22.15267909,43888.0,43887.0,3.86699768]
[1704151539345,21.85428485,43888.0,43887.0,3.86699768]
[1704151539564,21.45021278,43888.0,43887.0,3.98392386]
[1704151539775,21.45021278,43888.0,43887.0,3.96592386]
[1704151539776,21.22236006,43888.0,43887.0,3.96592386]
[1704151540031,21.22236006,43888.0,43887.0,3.98392386]
[1704151540286,21.22236006,43888.0,43887.0,3.84499768]
[1704151540506,21.22236006,43888.0,43887.0,3.88499768]
[1704151540733,20.99450734,43888.0,43887.0,3.96601823]
[1704151540953,20.99450734,43888.0,43887.0,3.24902574]
[1704151541171,20.99450734,43888.0,43887.0,4.09062554]
[1704151541377,19.61125462,43888.0,43887.0,3.14618988]
[1704151541593,19.61125462,43888.0,43887.0,10.84779355]
[1704151541815,19.61125462,43888.0,43887.0,11.83222921]
[1704151542016,19.60625462,43888.0,43887.0,11.81422921]
[1704151542224,19.3784019,43888.0,43887.0,11.83222921]
[1704151542433,19.3784019,43888.0,43887.0,11.81422921]
[1704151542613,19.3784019,43888.0,43887.0,11.77422921]
[1704151542839,19.15054918,43888.0,43887.0,11.83222921]
[1704151543047,19.15054918,43888.0,43887.0,11.81422921]
[1704151543280,19.15054918,43888.0,43887.0,11.73900287]
[1704151543490,18.92269646,43888.0,43887.0,11.77500287]
[1704151543915,18.92269646,43888.0,43887.0,11.72700287]
[1704151544118,18.92269646,43888.0,43887.0,11.75700287]
[1704151544341,18.69484374,43888.0,43887.0,4.00033683]
[1704151544563,18.69484374,43888.0,43887.0,2.38665288]
[1704151544770,18.69484374,43888.0,43887.0,1.76369288]
[1704151544983,18.46699102,43888.0,43887.0,1.83479654]
[1704151545166,18.46699102,43888.0,43887.0,1.81679654]
[1704151545414,18.46699102,43888.0,43887.0,1.91055688]
[1704151545629,18.46699102,43888.0,43887.0,1.88626086]
[1704151545839,18.46699102,43888.0,43887.0,1.86826086]
[1704151546055,18.2391383,43888.0,43887.0,1.86826086]
[1704151546267,18.2391383,43888.0,43887.0,1.71124086]
[1704151546451,18.2391383,43888.0,43887.0,1.86826086]
[1704151546698,18.2391383,43888.0,43887.0,1.85026086]
[1704151546904,18.01128558,43888.0,43887.0,1.86826086]
[1704151547120,18.01228558,43888.0,43887.0,1.88626086]
[1704151547330,18.01228558,43888.0,43887.0,2.21626086]
[1704151547584,17.80719655,43888.0,43887.0,2.51626086]
[1704151548344,17.80619655,43888.0,43887.0,2.48026086]
[1704151548559,17.80619655,43888.0,43887.0,2.52126086]
[1704151548770,17.80719655,43888.0,43887.0,2.53926086]
[1704151548982,17.80719655,43888.0,43887.0,2.59955688]
[1704151550177,17.77150875,43888.0,43887.0,2.59955688]
[1704151550376,17.77150875,43888.0,43887.0,2.66281654]
[1704151550586,17.67546908,43888.0,43887.0,2.66281654]
[1704151550783,17.62112108,43888.0,43887.0,2.49101227]
[1704151550980,17.53871577,43888.0,43887.0,3.49870759]
[1704151551184,17.52371677,43888.0,43887.0,11.03870759]
[1704151551388,16.12214322,43888.0,43887.0,11.10171081]
[1704151551617,16.12114322,43888.0,43887.0,11.10171081]
[1704151551809,14.93497201,43888.0,43887.0,11.11971081]
[1704151552097,14.93497201,43888.0,43887.0,12.7654624]
[1704151552098,14.86335577,43888.0,43887.0,12.7654624]
[1704151552321,14.73054204,43888.0,43887.0,12.8218204]
[1704151552534,14.72454204,43888.0,43887.0,12.77681718]
[1704151552749,14.72454204,43888.0,43887.0,12.71881718]
[1704151552965,14.72454204,43888.0,43887.0,12.29168752]
[1704151553219,14.72454204,43888.0,43887.0,12.30968752]
[1704151553428,14.72454204,43888.0,43887.0,12.36503526]
[1704151553635,14.72454204,43888.0,43887.0,12.32503526]
[1704151553852,14.72454204,43888.0,43887.0,12.36503526]
[1704151554059,14.68138814,43888.0,43887.0,12.36503526]
[1704151554275,14.40106391,43888.0,43887.0,11.05246492]
[1704151554482,13.31784426,43888.0,43887.0,10.93284726]
[1704151554710,13.17225494,43888.0,43887.0,12.7820032]
[1704151554955,12.4180935,43888.0,43887.0,12.8000032]
[1704151555168,11.5123381,43888.0,43887.0,12.72618556]
[1704151555400,11.45939565,43888.0,43887.0,12.75671614]
[1704151555605,11.45939565,43888.0,43887.0,14.08728648]
[1704151555815,11.45939565,43888.0,43887.0,14.10528648]
[1704151556023,11.45939565,43888.0,43887.0,14.06928648]
[1704151556233,11.45939565,43888.0,43887.0,6.60528648]
[1704151556440,10.23409708,43888.0,43887.0,6.60528648]
[1704151556654,10.2180164,43888.0,43887.0,6.58728648]
[1704151556879,10.2180164,43888.0,43887.0,12.77471614]
[1704151557740,10.2180164,43888.0,43887.0,12.75671614]
[1704151557964,10.06894467,43888.0,43887.0,14.08191614]
[1704151558187,7.52549467,43888.0,43887.0,15.39448648]
[1704151558402,5.82765094,43888.0,43887.0,15.37648648]
[1704151558612,5.61565094,43888.0,43887.0,15.37648648]
[1704151558837,4.97965094,43888.0,43887.0,15.37648648]
[1704151559013,4.83982786,43888.0,43887.0,15.3459559]
[1704151559296,4.78806064,43888.0,43887.0,15.37937369]
[1704151559508,4.50695297,43888.0,43887.0,15.32573539]
[1704151559724,4.39686032,43888.0,43887.0,15.39123321]
[1704151559933,3.11586032,43888.0,43887.0,15.39123321]
[1704151560176,2.96580631,43888.0,43887.0,15.33981542]
[1704151560407,2.92080632,43888.0,43887.0,15.42809729]
[1704151560616,2.84664668,43888.0,43887.0,15.408709]
[1704151561071,2.84664668,43888.0,43887.0,15.426709]
[1704151561282,1.70724668,43888.0,43887.0,15.3663332]
[1704151561505,0.44638246,43888.0,43887.0,15.3663332]
[1704151561712,0.0201339,43889.0,43888.0,0.315]
[1704151561933,0.00030398,43890.0,43889.0,0.315]
[1704151562156,1.74287376,43895.0,43894.0,1.045]
[1704151562386,1.72287376,43895.0,43894.0,10.23658152]
[1704151562565,1.70280941,43895.0,43894.0,12.48973561]
[1704151562771,1.60467668,43895.0,43894.0,13.18909561]
[1704151563015,1.37685988,43895.0,43894.0,13.18909561]
[1704151563201,1.36085988,43895.0,43894.0,14.88087716]
[1704151563611,1.35585988,43895.0,43894.0,14.85517114]
[1704151563825,1.35585988,43895.0,43894.0,14.91436257]
[1704151563826,1.20895098,43895.0,43894.0,14.91436257]
[1704151564037,0.85574834,43895.0,43894.0,14.91436257]
[1704151564260,0.73021661,43895.0,43894.0,14.91436257]
[1704151564471,0.61977205,43895.0,43894.0,14.91436257]
[1704151564674,0.58877205,43895.0,43894.0,14.58117114]
[1704151564881,0.36095567,43895.0,43894.0,14.56396928]
[1704151565083,0.36095567,43895.0,43894.0,14.59396928]
[1704151565288,0.34495567,43895.0,43894.0,14.63496928]
[1704151565499,0.25153299,43895.0,43894.0,14.65296928]
[1704151565914,0.02371661,43895.0,43894.0,14.65296928]
[1704151566125,0.02371661,43895.0,43894.0,14.59358546]
[1704151566541,0.06007556,43898.0,43897.0,0.315]
[1704151566753,1.00505432,43899.0,43898.0,0.644767]
[1704151566960,1.00505432,43899.0,43898.0,2.22589273]
[1704151567162,1.00505432,43899.0,43898.0,3.55312739]
[1704151567380,1.00505432,43899.0,43898.0,3.56119394]
[1704151567589,0.7772587,43899.0,43898.0,3.58419394]
[1704151567791,0.7612587,43899.0,43898.0,3.58419394]
[1704151567998,0.7612587,43899.0,43898.0,11.10219394]
[1704151568452,0.53346308,43899.0,43898.0,12.43197549]
[1704151569096,0.30566746,43899.0,43898.0,12.43197549]
[1704151569508,0.28966746,43899.0,43898.0,12.43197549]
[1704151569923,0.06177184,43899.0,43898.0,12.43197549]
[1704151570358,0.06177184,43899.0,43898.0,14.17167549]
[1704151570580,0.35543812,43900.0,43899.0,0.714068]
[1704151570787,0.35543812,43900.0,43899.0,2.15092944]
[1704151571006,0.35543812,43900.0,43899.0,3.07687619]
[1704151571193,0.35543812,43900.0,43899.0,2.77746529]
[1704151571595,0.12764628,43900.0,43899.0,2.77746529]
[1704151572017,0.09945656,43900.0,43899.0,2.77746529]
[1704151572225,0.09945656,43900.0,43899.0,2.82546529]
[1704151572226,0.07194053,43900.0,43899.0,2.82546529]
[1704151572428,0.03289896,43901.0,43900.0,0.644068]
[1704151572629,0.03289896,43901.0,43900.0,1.86112127]
[1704151572842,0.03289896,43901.0,43900.0,1.83041255]
[1704151573049,0.03289896,43901.0,43900.0,2.56884055]
[1704151573257,0.03486176,43907.0,43906.0,1.044068]
[1704151573477,0.03486176,43907.0,43906.0,2.85700394]
[1704151573689,0.00909091,43908.0,43907.0,0.314068]
[1704151573908,0.00909091,43908.0,43907.0,1.88412127]
[1704151574107,0.54358799,43917.0,43916.0,0.705]
[1704151574335,0.54358799,43917.0,43916.0,1.23821711]
[1704151574542,0.54358799,43917.0,43916.0,1.93781711]
[1704151574745,0.54358799,43917.0,43916.0,2.36071511]
[1704151574965,0.31584734,43917.0,43916.0,2.55297548]
[1704151575202,0.31584734,43917.0,43916.0,3.53681164]
[1704151575401,0.31584734,43917.0,43916.0,3.55981164]
[1704151576081,0.08814508,43917.0,43916.0,3.66891564]
[1704151576719,0.08814508,43917.0,43916.0,11.16891564]
[1704151576936,0.1895,43927.0,43920.0,0.314068]
[1704151576937,6.3911696,43921.0,43920.0,0.314068]
[1704151577147,6.3911696,43921.0,43920.0,2.3340942]
[1704151577352,6.3911696,43921.0,43920.0,2.34233895]
[1704151577566,6.3811696,43921.0,43920.0,3.04169895]
[1704151577808,6.1534742,43921.0,43920.0,2.05786279]
[1704151578032,6.1534742,43921.0,43920.0,3.04135024]
[1704151578515,6.1534742,43921.0,43920.0,3.07135024]
[1704151578742,6.1534742,43921.0,43920.0,3.08935024]
[1704151579197,6.1534742,43921.0,43920.0,3.10735024]
[1704151580283,6.1534742,43921.0,43920.0,3.06828224]
[1704151580498,6.1534742,43921.0,43920.0,10.60735024]
[1704151580702,6.1534742,43921.0,43920.0,10.58935024]
[1704151581109,6.1534742,43921.0,43920.0,10.57135024]
[1704151581309,6.1534742,43921.0,43920.0,10.58935024]
[1704151581516,6.1534742,43921.0,43920.0,10.60735024]
[1704151582146,6.1143742,43921.0,43920.0,10.61915024]
[1704151582592,6.1143742,43921.0,43920.0,10.59615024]
[1704151582800,6.1143742,43921.0,43920.0,10.97815024]
[1704151583022,6.1143742,43921.0,43920.0,10.99615024]
[1704151584329,6.1143742,43921.0,43920.0,11.01915024]
[1704151585220,6.1053742,43921.0,43920.0,10.98008224]
[1704151585689,6.1053742,43921.0,43920.0,11.01915024]
[1704151586581,6.1053742,43921.0,43920.0,11.01902701]
[1704151586813,6.1053742,43921.0,43920.0,11.01879401]
[1704151587022,6.1053742,43921.0,43920.0,11.01856101]
[1704151587439,6.1053742,43921.0,43920.0,11.01832801]
[1704151587681,6.1053742,43921.0,43920.0,11.01786201]
[1704151587917,6.1053742,43921.0,43920.0,12.64536201]
[1704151588161,6.02343188,43921.0,43920.0,12.64512901]
[1704151588400,6.02343188,43921.0,43920.0,12.64466301]
[1704151588617,6.02343188,43921.0,43920.0,12.64443001]
[1704151588828,6.02343188,43921.0,43920.0,13.95585142]
[1704151589045,6.02343188,43921.0,43920.0,6.45585142]
[1704151589281,6.02343188,43921.0,43920.0,6.41985142]
[1704151589492,6.02343188,43921.0,43920.0,13.95585142]
[1704151589958,6.02343188,43921.0,43920.0,13.91985142]
[1704151590176,6.02343188,43921.0,43920.0,13.93785142]
[1704151591107,6.02343188,43921.0,43920.0,13.95585142]
[1704151591958,6.01843188,43921.0,43920.0,13.93785142]
[1704151592183,6.01843188,43921.0,43920.0,13.95585142]
[1704151592397,6.01843188,43921.0,43920.0,13.91160667]
[1704151592821,4.79843188,43921.0,43920.0,13.92960667]
[1704151593067,4.79843188,43921.0,43920.0,13.94760667]
[1704151593291,4.67552821,43921.0,43920.0,13.94760667]
[1704151593544,4.65952821,43921.0,43920.0,13.92960667]
[1704151593765,4.56952821,43921.0,43920.0,13.92960667]
[1704151593975,4.56952821,43921.0,43920.0,13.94760667]
[1704151594651,4.56952821,43921.0,43920.0,13.92960667]
[1704151594871,4.56952821,43921.0,43920.0,13.90151125]
[1704151595079,4.56952821,43921.0,43920.0,13.88351125]
[1704151595292,4.56952821,43921.0,43920.0,13.90151125]
[1704151595721,4.56952821,43921.0,43920.0,13.88351125]
[1704151596146,4.56952821,43921.0,43920.0,13.90151125]
[1704151596358,4.56952821,43921.0,43920.0,13.92451125]
[1704151599191,4.56952821,43921.0,43920.0,13.9781019]
[1704151599411,4.56952821,43921.0,43920.0,14.00489723]
[1704151599621,4.56952821,43921.0,43920.0,13.92451125]
[1704151600042,4.56952821,43921.0,43920.0,13.97769086]
[1704151600246,4.56952821,43921.0,43920.0,14.00489723]
[1704151601218,4.56952821,43921.0,43920.0,14.03169256]
[1704151601644,4.56952821,43921.0,43920.0,14.05848788]
[1704151601854,4.56952821,43921.0,43920.0,13.92451125]
[1704151602279,4.56952821,43921.0,43920.0,14.03092861]
[1704151602493,4.56952821,43921.0,43920.0,13.92451125]
[1704151602709,4.56952821,43921.0,43920.0,13.60151125]
[1704151603168,4.56952821,43921.0,43920.0,12.29008984]
[1704151604366,4.56952821,43921.0,43920.0,12.31308984]
[1704151604546,4.56952821,43921.0,43920.0,13.62451125]
[1704151605260,4.56952821,43921.0,43920.0,13.6777316]
[1704151606257,4.56952821,43921.0,43920.0,13.67778807]
[1704151606493,4.56952821,43921.0,43920.0,13.65478807]
[1704151606692,4.56952821,43921.0,43920.0,3.75166184]
[1704151606898,4.56952821,43921.0,43920.0,2.76253439]
[1704151607096,4.56952821,43921.0,43916.0,0.204934]
[1704151607293,4.56952821,43921.0,43917.0,0.11385]
[1704151607751,4.67152821,43921.0,43912.0,0.71606766]
[1704151607951,4.67352821,43921.0,43910.0,0.5695]
[1704151608161,0.1,43919.0,43906.0,0.5803]
[1704151608365,0.2,43919.0,43911.0,0.091133]
[1704151608569,0.2,43919.0,43917.0,0.018]
[1704151609013,0.2,43919.0,43910.0,0.002]
[1704151609214,0.2,43919.0,43902.0,0.0259]
[1704151609215,0.1,43919.0,43906.0,0.004]
[1704151609418,0.2,43918.0,43911.0,0.091134]
[1704151609647,0.2,43917.0,43911.0,0.091134]
[1704151610079,0.6608,43917.0,43911.0,0.091134]
[1704151610310,0.1,43915.0,43911.0,0.091134]
[1704151610523,0.45774,43916.0,43911.0,0.091134]
[1704151610742,0.1,43918.0,43911.0,0.091134]
[1704151610743,0.2268,43914.0,43911.0,0.091134]
[1704151611012,0.26436,43917.0,43911.0,0.091134]
[1704151611209,0.20892,43913.0,43911.0,0.091134]
[1704151611393,0.40158,43916.0,43911.0,0.091134]
[1704151611540,0.25584,43912.0,43911.0,0.091134]
[1704151611752,0.44568,43915.0,43911.0,0.091134]
[1704151612024,0.002,43914.0,43911.0,0.095134]
[1704151612181,0.42462,43912.0,43911.0,0.095134]